[Event "*** MasterClass Titled Tuesday Blitz"]
[Site "Chess.com"]
[Date "2017.07.04"]
[Round "6"]
[White "GMAkobianSTL"]
[Black "Adham_Fawzy"]
[Result "0-1"]
[WhiteElo "2558"]
[BlackElo "2435"]
[TimeControl "180+2"]
[EndTime "14:22:14 PDT"]
[Termination "Adham_Fawzy won on time"]

1. d4 {[%clk 0:03:01.9]} 1... Nf6 {[%clk 0:03:00.8]} 2. c4 {[%clk 0:03:02]} 2...
e6 {[%clk 0:03:01.6]} 3. Nf3 {[%clk 0:02:59.1]} 3... b6 {[%clk 0:03:01.6]} 4. g3
{[%clk 0:02:59]} 4... Bb7 {[%clk 0:03:02.6]} 5. Bg2 {[%clk 0:02:58.9]} 5... Bb4+
{[%clk 0:03:03.9]} 6. Nbd2 {[%clk 0:02:57.8]} 6... O-O {[%clk 0:03:03.2]} 7. O-O
{[%clk 0:02:56.6]} 7... a5 {[%clk 0:03:03.8]} 8. Qc2 {[%clk 0:02:48.7]} 8...
Bxd2 {[%clk 0:03:04.1]} 9. Qxd2 {[%clk 0:02:48.2]} 9... d6 {[%clk 0:03:03.1]}
10. b3 {[%clk 0:02:48.5]} 10... Nbd7 {[%clk 0:03:02.6]} 11. Bb2 {[%clk
0:02:49.4]} 11... Be4 {[%clk 0:03:01.1]} 12. a3 {[%clk 0:02:47.8]} 12... c5
{[%clk 0:02:57]} 13. Rfd1 {[%clk 0:02:47.6]} 13... d5 {[%clk 0:02:26.4]} 14.
Rac1 {[%clk 0:02:39.7]} 14... a4 {[%clk 0:02:19.6]} 15. b4 {[%clk 0:02:30]}
15... dxc4 {[%clk 0:02:14.5]} 16. dxc5 {[%clk 0:02:29.6]} 16... bxc5 {[%clk
0:02:07.8]} 17. Rxc4 {[%clk 0:02:24]} 17... Bd5 {[%clk 0:02:03]} 18. Rcc1 {[%clk
0:02:05.5]} 18... Ne4 {[%clk 0:01:46.9]} 19. Qf4 {[%clk 0:01:43.1]} 19... cxb4
{[%clk 0:01:42.3]} 20. Ne5 {[%clk 0:01:43.3]} 20... Nxe5 {[%clk 0:00:56.1]} 21.
Bxe5 {[%clk 0:01:43]} 21... f5 {[%clk 0:00:52.7]} 22. f3 {[%clk 0:01:17.3]}
22... Nc3 {[%clk 0:00:48.3]} 23. Bxc3 {[%clk 0:01:14.8]} 23... bxc3 {[%clk
0:00:48.4]} 24. Rxc3 {[%clk 0:01:15.3]} 24... Qb6+ {[%clk 0:00:48]} 25. Kh1
{[%clk 0:00:50.8]} 25... Qb2 {[%clk 0:00:36]} 26. Qe3 {[%clk 0:00:21]} 26... Bb3
{[%clk 0:00:22.6]} 27. Rdc1 {[%clk 0:00:21.5]} 27... Rad8 {[%clk 0:00:19.6]} 28.
f4 {[%clk 0:00:14.7]} 28... Qxa3 {[%clk 0:00:11.7]} 29. Qxe6+ {[%clk 0:00:14.1]}
29... Kh8 {[%clk 0:00:10.4]} 0-1

[Event "*** MasterClass Titled Tuesday Blitz"]
[Site "Chess.com"]
[Date "2017.07.04"]
[Round "6"]
[White "silverback96"]
[Black "viggi38"]
[Result "0-1"]
[WhiteElo "2120"]
[BlackElo "2253"]
[TimeControl "180+2"]
[EndTime "14:22:15 PDT"]
[Termination "viggi38 won by resignation"]

1. Nf3 {[%clk 0:03:01.9]} 1... f5 {[%clk 0:03:00.3]} 2. d3 {[%clk 0:03:01.2]}
2... Nf6 {[%clk 0:03:00.7]} 3. Nbd2 {[%clk 0:03:01.5]} 3... d5 {[%clk
0:02:59.3]} 4. g3 {[%clk 0:02:52.5]} 4... Nc6 {[%clk 0:02:58.1]} 5. Bg2 {[%clk
0:02:53.6]} 5... e5 {[%clk 0:02:57.8]} 6. O-O {[%clk 0:02:54.7]} 6... Be7 {[%clk
0:02:53.2]} 7. a3 {[%clk 0:02:55.4]} 7... a5 {[%clk 0:02:50.7]} 8. c4 {[%clk
0:02:53.6]} 8... O-O {[%clk 0:02:43.5]} 9. cxd5 {[%clk 0:02:51.6]} 9... Nxd5
{[%clk 0:02:42.5]} 10. Qb3 {[%clk 0:02:51.6]} 10... Be6 {[%clk 0:02:40.7]} 11.
Qxb7 {[%clk 0:02:47.9]} 11... Qd7 {[%clk 0:02:24.2]} 12. Qb5 {[%clk 0:02:31.7]}
12... Rfb8 {[%clk 0:02:16.7]} 13. Qa4 {[%clk 0:02:30.3]} 13... Nb6 {[%clk
0:02:12]} 14. Qc2 {[%clk 0:02:26.2]} 14... a4 {[%clk 0:01:47.8]} 15. Ng5 {[%clk
0:02:07.5]} 15... Bd5 {[%clk 0:01:44.2]} 16. Bxd5+ {[%clk 0:02:07.6]} 16... Nxd5
{[%clk 0:01:32.6]} 17. Nc4 {[%clk 0:02:00.8]} 17... Nd4 {[%clk 0:01:28.8]} 18.
Qd1 {[%clk 0:01:57.6]} 18... Bf6 {[%clk 0:01:15.2]} 19. e4 {[%clk 0:01:42.5]}
19... Nb3 {[%clk 0:01:08.7]} 20. Rb1 {[%clk 0:01:30.7]} 20... Ne7 {[%clk
0:00:59.2]} 21. Qh5 {[%clk 0:01:29.4]} 21... h6 {[%clk 0:00:43.4]} 22. Qf7+
{[%clk 0:01:13.2]} 22... Kh8 {[%clk 0:00:43.5]} 23. Ne6 {[%clk 0:01:13.7]} 23...
Ra6 {[%clk 0:00:25.6]} 24. exf5 {[%clk 0:00:55.8]} 24... Qxd3 {[%clk 0:00:16.2]}
25. Bxh6 {[%clk 0:00:53.8]} 25... Nxf5 {[%clk 0:00:16.4]} 26. Qg6 {[%clk
0:00:44.7]} 26... Rxe6 {[%clk 0:00:09.6]} 27. Nxe5 {[%clk 0:00:36.7]} 27... Rxe5
{[%clk 0:00:08.2]} 28. Bf4 {[%clk 0:00:30.7]} 28... Re6 {[%clk 0:00:08]} 29.
Rbd1 {[%clk 0:00:28.7]} 29... Qc2 {[%clk 0:00:08.5]} 30. Rd5 {[%clk 0:00:26.8]}
30... Nbd4 {[%clk 0:00:08.9]} 31. Rxd4 {[%clk 0:00:26.1]} 31... Nxd4 {[%clk
0:00:07.1]} 32. Qh5+ {[%clk 0:00:27.5]} 32... Kg8 {[%clk 0:00:06.7]} 33. Rc1
{[%clk 0:00:28.2]} 33... Ne2+ {[%clk 0:00:07.4]} 34. Kg2 {[%clk 0:00:25.4]}
34... Nxc1 {[%clk 0:00:09.3]} 35. Qd5 {[%clk 0:00:26.7]} 35... Qc6 {[%clk
0:00:08.9]} 36. Qxc6 {[%clk 0:00:26.6]} 36... Rxc6 {[%clk 0:00:10.8]} 0-1

[Event "*** MasterClass Titled Tuesday Blitz"]
[Site "Chess.com"]
[Date "2017.07.04"]
[Round "6"]
[White "Colombiano07"]
[Black "Godzillator"]
[Result "0-1"]
[WhiteElo "2308"]
[BlackElo "2273"]
[TimeControl "180+2"]
[EndTime "14:22:33 PDT"]
[Termination "Godzillator won by checkmate"]

1. d4 {[%clk 0:02:59]} 1... d5 {[%clk 0:03:00.4]} 2. Bf4 {[%clk 0:03:00.6]} 2...
c5 {[%clk 0:03:00.9]} 3. e3 {[%clk 0:03:01.1]} 3... cxd4 {[%clk 0:03:01.6]} 4.
exd4 {[%clk 0:03:02.1]} 4... Nc6 {[%clk 0:03:03.2]} 5. c3 {[%clk 0:03:03.3]}
5... Nf6 {[%clk 0:03:04.4]} 6. Nd2 {[%clk 0:03:03.8]} 6... Bg4 {[%clk
0:03:05.3]} 7. Ngf3 {[%clk 0:03:04.5]} 7... e6 {[%clk 0:03:05.9]} 8. Bd3 {[%clk
0:03:04.9]} 8... Be7 {[%clk 0:03:07.1]} 9. Qb3 {[%clk 0:03:05.9]} 9... Qc8
{[%clk 0:03:07.8]} 10. Ne5 {[%clk 0:03:05.7]} 10... Nxe5 {[%clk 0:03:06]} 11.
dxe5 {[%clk 0:03:07.6]} 11... Nd7 {[%clk 0:03:06.5]} 12. Qa4 {[%clk 0:03:07.9]}
12... O-O {[%clk 0:02:59.5]} 13. Bg3 {[%clk 0:03:07.8]} 13... Nc5 {[%clk
0:02:57]} 14. Qc2 {[%clk 0:03:05.2]} 14... Nxd3+ {[%clk 0:02:57]} 15. Qxd3
{[%clk 0:03:07.1]} 15... Bf5 {[%clk 0:02:54.8]} 16. Qf3 {[%clk 0:03:06.5]} 16...
d4 {[%clk 0:02:48.6]} 17. cxd4 {[%clk 0:03:05]} 17... Qc2 {[%clk 0:02:48.5]} 18.
Qc3 {[%clk 0:03:05.1]} 18... Rac8 {[%clk 0:02:45.9]} 19. Qxc2 {[%clk 0:03:06.1]}
19... Rxc2 {[%clk 0:02:47]} 20. Nb3 {[%clk 0:03:03.5]} 20... Bb4+ {[%clk
0:02:46.1]} 21. Kf1 {[%clk 0:03:03.1]} 21... Rfc8 {[%clk 0:02:42.3]} 22. Kg1
{[%clk 0:03:02.4]} 22... a5 {[%clk 0:02:40]} 23. h3 {[%clk 0:02:58.8]} 23...
Rxb2 {[%clk 0:02:36]} 24. Kh2 {[%clk 0:02:53.6]} 24... b6 {[%clk 0:02:29]} 25.
Rhc1 {[%clk 0:02:52.8]} 25... Rcc2 {[%clk 0:02:26.6]} 26. Rxc2 {[%clk
0:02:52.6]} 26... Rxc2 {[%clk 0:02:27.5]} 27. a3 {[%clk 0:02:51.7]} 27... Be7
{[%clk 0:02:23.5]} 28. d5 {[%clk 0:02:44.8]} 28... exd5 {[%clk 0:02:20.9]} 29.
Nd4 {[%clk 0:02:45]} 29... Bd3 {[%clk 0:02:02.7]} 30. Nxc2 {[%clk 0:02:44.5]}
30... Bxc2 {[%clk 0:02:02.9]} 31. Rc1 {[%clk 0:02:40.2]} 31... Bf5 {[%clk
0:01:56.9]} 32. a4 {[%clk 0:02:37.8]} 32... Bc5 {[%clk 0:01:55.4]} 33. Bf4
{[%clk 0:02:28.6]} 33... h6 {[%clk 0:01:50.7]} 34. Be3 {[%clk 0:02:27.3]} 34...
d4 {[%clk 0:01:51.9]} 35. Bd2 {[%clk 0:02:24.8]} 35... Bd7 {[%clk 0:01:46.4]}
36. Bxa5 {[%clk 0:02:25.2]} 36... Bxa4 {[%clk 0:01:47.1]} 37. Bb4 {[%clk
0:02:10.9]} 37... d3 {[%clk 0:01:45.5]} 38. Be1 {[%clk 0:02:00.9]} 38... Bc2
{[%clk 0:01:41.3]} 39. Kg3 {[%clk 0:02:01.1]} 39... b5 {[%clk 0:01:41.4]} 40. f4
{[%clk 0:01:15.4]} 40... Bd4 {[%clk 0:01:39]} 41. Kf3 {[%clk 0:01:11.5]} 41...
Bb2 {[%clk 0:01:35.4]} 42. Bd2 {[%clk 0:01:12.7]} 42... Bxc1 {[%clk 0:01:27.5]}
43. Bxc1 {[%clk 0:01:14.6]} 43... Kf8 {[%clk 0:01:27.9]} 44. Ke3 {[%clk
0:01:15.7]} 44... g6 {[%clk 0:01:25.1]} 45. Bd2 {[%clk 0:01:12.5]} 45... h5
{[%clk 0:01:22.3]} 46. g4 {[%clk 0:01:12.9]} 46... h4 {[%clk 0:01:21.4]} 47. Kd4
{[%clk 0:01:10.1]} 47... Ke7 {[%clk 0:01:16.9]} 48. Kc3 {[%clk 0:01:08.7]} 48...
Ke6 {[%clk 0:01:17.1]} 49. Be1 {[%clk 0:01:08.9]} 49... Kd5 {[%clk 0:01:17.4]}
50. Bxh4 {[%clk 0:01:08]} 50... Ke4 {[%clk 0:01:18.7]} 51. Bg5 {[%clk
0:01:01.9]} 51... b4+ {[%clk 0:01:14.6]} 52. Kd2 {[%clk 0:00:59]} 52... b3
{[%clk 0:01:15.8]} 53. f5 {[%clk 0:00:52.8]} 53... b2 {[%clk 0:01:13.8]} 54. e6
{[%clk 0:00:53.3]} 54... fxe6 {[%clk 0:01:07.3]} 55. fxe6 {[%clk 0:00:52.8]}
55... b1=Q {[%clk 0:01:07.4]} 56. e7 {[%clk 0:00:54.2]} 56... Qb4+ {[%clk
0:01:05.8]} 57. Kc1 {[%clk 0:00:53.3]} 57... Ba4 {[%clk 0:00:57.7]} 58. h4
{[%clk 0:00:52.1]} 58... Qb3 {[%clk 0:00:57.3]} 59. Kd2 {[%clk 0:00:52.4]} 59...
Qc2+ {[%clk 0:00:57.9]} 60. Ke1 {[%clk 0:00:53.7]} 60... Qe2# {[%clk 0:00:59]}
0-1

[Event "*** MasterClass Titled Tuesday Blitz"]
[Site "Chess.com"]
[Date "2017.07.04"]
[Round "6"]
[White "1lec"]
[Black "latigre"]
[Result "1-0"]
[WhiteElo "2091"]
[BlackElo "1761"]
[TimeControl "180+2"]
[EndTime "14:22:41 PDT"]
[Termination "1lec won by resignation"]

1. d4 {[%clk 0:03:01.9]} 1... Nf6 {[%clk 0:02:59.3]} 2. Nf3 {[%clk 0:03:03.5]}
2... e6 {[%clk 0:02:59.8]} 3. Bf4 {[%clk 0:03:05]} 3... d5 {[%clk 0:03:00.7]} 4.
e3 {[%clk 0:03:05.9]} 4... Bd6 {[%clk 0:03:01.4]} 5. Bxd6 {[%clk 0:03:06.8]}
5... cxd6 {[%clk 0:03:01.7]} 6. c3 {[%clk 0:02:58.7]} 6... O-O {[%clk
0:03:00.9]} 7. Nbd2 {[%clk 0:02:59.8]} 7... Nc6 {[%clk 0:03:01]} 8. Be2 {[%clk
0:02:56.1]} 8... e5 {[%clk 0:02:59.9]} 9. O-O {[%clk 0:02:55.5]} 9... e4 {[%clk
0:02:59.7]} 10. Ne1 {[%clk 0:02:55.6]} 10... Ne8 {[%clk 0:02:30.8]} 11. b4
{[%clk 0:02:31.9]} 11... f5 {[%clk 0:02:16.1]} 12. f4 {[%clk 0:02:31.7]} 12...
g5 {[%clk 0:02:11.7]} 13. a4 {[%clk 0:02:26.8]} 13... gxf4 {[%clk 0:02:10]} 14.
Rxf4 {[%clk 0:02:27.4]} 14... Qg5 {[%clk 0:02:05.6]} 15. Nc2 {[%clk 0:02:01]}
15... Ng7 {[%clk 0:02:00.5]} 16. Qe1 {[%clk 0:01:36.9]} 16... Rf6 {[%clk
0:01:38.5]} 17. Qh4 {[%clk 0:01:32.5]} 17... Rg6 {[%clk 0:01:26.2]} 18. Qxg5
{[%clk 0:01:28.9]} 18... Rxg5 {[%clk 0:01:27]} 19. a5 {[%clk 0:01:17.2]} 19...
Be6 {[%clk 0:01:25.2]} 20. b5 {[%clk 0:01:17.2]} 20... Ne7 {[%clk 0:01:23.9]}
21. Nb4 {[%clk 0:01:03.7]} 21... Rc8 {[%clk 0:01:16.2]} 22. Rc1 {[%clk
0:00:57.5]} 22... Ng6 {[%clk 0:00:59.6]} 23. Rff1 {[%clk 0:00:44.4]} 23... h5
{[%clk 0:00:45.7]} 24. c4 {[%clk 0:00:38.3]} 24... dxc4 {[%clk 0:00:39.2]} 25.
Nxc4 {[%clk 0:00:39.3]} 25... d5 {[%clk 0:00:37.3]} 26. Nd6 {[%clk 0:00:37.7]}
26... Rxc1 {[%clk 0:00:26.6]} 27. Rxc1 {[%clk 0:00:38.1]} 27... f4 {[%clk
0:00:27.3]} 28. Kf1 {[%clk 0:00:19.1]} 28... fxe3 {[%clk 0:00:25.5]} 29. Nxb7
{[%clk 0:00:18.2]} 29... Nf5 {[%clk 0:00:24.8]} 30. Nd8 {[%clk 0:00:17.1]} 30...
Bd7 {[%clk 0:00:24.7]} 31. b6 {[%clk 0:00:15.2]} 31... axb6 {[%clk 0:00:24.2]}
32. a6 {[%clk 0:00:11.2]} 32... Nxd4 {[%clk 0:00:26.1]} 33. a7 {[%clk
0:00:11.1]} 33... Nxe2 {[%clk 0:00:26.7]} 34. Kxe2 {[%clk 0:00:10]} 34... Nf4+
{[%clk 0:00:25.4]} 35. Kxe3 {[%clk 0:00:09.5]} 35... Nxg2+ {[%clk 0:00:25.7]}
36. Kd4 {[%clk 0:00:09.4]} 36... Nf4 {[%clk 0:00:23.8]} 37. a8=Q {[%clk
0:00:07.5]} 37... Ne2+ {[%clk 0:00:24.9]} 38. Ke3 {[%clk 0:00:08.4]} 38... Nxc1
{[%clk 0:00:25.3]} 39. Ne6+ {[%clk 0:00:09.5]} 39... Kf7 {[%clk 0:00:25.8]} 40.
Nxg5+ {[%clk 0:00:10.5]} 40... Kf6 {[%clk 0:00:27]} 41. Qxd5 {[%clk 0:00:07.9]}
41... Bf5 {[%clk 0:00:25.6]} 42. Nxe4+ {[%clk 0:00:08.1]} 42... Kg6 {[%clk
0:00:26.1]} 43. Qc6+ {[%clk 0:00:08.2]} 43... Kh7 {[%clk 0:00:24]} 44. Qxc1
{[%clk 0:00:08.7]} 1-0

[Event "*** MasterClass Titled Tuesday Blitz"]
[Site "Chess.com"]
[Date "2017.07.04"]
[Round "6"]
[White "DanielRensch"]
[Black "Rodalquilar"]
[Result "1-0"]
[WhiteElo "2416"]
[BlackElo "2521"]
[TimeControl "180+2"]
[EndTime "14:23:02 PDT"]
[Termination "DanielRensch won by checkmate"]

1. e4 {[%clk 0:03:02]} 1... e5 {[%clk 0:03:00.7]} 2. Nf3 {[%clk 0:03:02.9]} 2...
Nc6 {[%clk 0:03:02]} 3. d4 {[%clk 0:03:08]} 3... exd4 {[%clk 0:03:03]} 4. Nxd4
{[%clk 0:03:09.9]} 4... Bb4+ {[%clk 0:03:03.9]} 5. c3 {[%clk 0:03:08.7]} 5...
Bc5 {[%clk 0:03:05.1]} 6. Be3 {[%clk 0:03:09.8]} 6... Bb6 {[%clk 0:03:06.2]} 7.
Nf5 {[%clk 0:03:10.6]} 7... g6 {[%clk 0:03:07.1]} 8. Bxb6 {[%clk 0:03:10.8]}
8... axb6 {[%clk 0:03:07.8]} 9. Ne3 {[%clk 0:03:11.8]} 9... Nf6 {[%clk
0:03:08.7]} 10. f3 {[%clk 0:03:12.9]} 10... O-O {[%clk 0:02:59.3]} 11. c4 {[%clk
0:03:13.8]} 11... d5 {[%clk 0:02:52]} 12. cxd5 {[%clk 0:03:13.3]} 12... Nxe4
{[%clk 0:02:53.4]} 13. fxe4 {[%clk 0:02:53.7]} 13... Qh4+ {[%clk 0:02:50.8]} 14.
g3 {[%clk 0:02:54.2]} 14... Qxe4 {[%clk 0:02:50.2]} 15. Kf2 {[%clk 0:02:55.2]}
15... Qxh1 {[%clk 0:02:44.3]} 16. dxc6 {[%clk 0:02:54.7]} 16... bxc6 {[%clk
0:02:23.4]} 17. Nc3 {[%clk 0:02:52.4]} 17... Qxh2+ {[%clk 0:02:05]} 18. Bg2
{[%clk 0:02:51]} 18... Ra5 {[%clk 0:01:22.9]} 19. Qd4 {[%clk 0:02:44.6]} 19...
Qh6 {[%clk 0:01:03.5]} 20. Rh1 {[%clk 0:02:41.7]} 20... Qg7 {[%clk 0:01:04.5]}
21. Qxg7+ {[%clk 0:02:38.5]} 21... Kxg7 {[%clk 0:01:05.4]} 22. Bxc6 {[%clk
0:02:40.5]} 22... Be6 {[%clk 0:01:01.9]} 23. a3 {[%clk 0:02:40.8]} 23... Rd8
{[%clk 0:01:03]} 24. Rd1 {[%clk 0:02:30.8]} 24... Rxd1 {[%clk 0:01:02.3]} 25.
Nexd1 {[%clk 0:02:31.4]} 25... h5 {[%clk 0:01:02]} 26. Ne3 {[%clk 0:02:30.7]}
26... g5 {[%clk 0:00:59.8]} 27. Nc2 {[%clk 0:02:26.5]} 27... f5 {[%clk
0:00:49.4]} 28. Nd4 {[%clk 0:02:27]} 28... Kf6 {[%clk 0:00:50.9]} 29. Ndb5
{[%clk 0:02:27.3]} 29... f4 {[%clk 0:00:39.9]} 30. b4 {[%clk 0:02:26]} 30...
fxg3+ {[%clk 0:00:34.1]} 31. Kxg3 {[%clk 0:02:27.9]} 31... h4+ {[%clk
0:00:33.3]} 32. Kf2 {[%clk 0:02:28.7]} 32... Rxb5 {[%clk 0:00:34.6]} 33. Nxb5
{[%clk 0:02:28.5]} 33... Ke5 {[%clk 0:00:31.4]} 34. Nxc7 {[%clk 0:02:26.1]}
34... Bc4 {[%clk 0:00:30.3]} 35. Bf3 {[%clk 0:02:05.5]} 35... b5 {[%clk
0:00:20]} 36. Be2 {[%clk 0:02:00.3]} 36... h3 {[%clk 0:00:13]} 37. Bg4 {[%clk
0:01:53.3]} 37... h2 {[%clk 0:00:10.3]} 38. Kg2 {[%clk 0:01:53.6]} 38... Kd4
{[%clk 0:00:08.9]} 39. Bd7 {[%clk 0:01:49]} 39... Kc3 {[%clk 0:00:09.7]} 40.
Bxb5 {[%clk 0:01:49.3]} 40... Bf7 {[%clk 0:00:08.5]} 41. Be2 {[%clk 0:01:47.8]}
41... Kb3 {[%clk 0:00:08.9]} 42. Nb5 {[%clk 0:01:48.1]} 42... Be8 {[%clk
0:00:07.2]} 43. Nd6 {[%clk 0:01:49]} 43... Bc6+ {[%clk 0:00:06.7]} 44. Kxh2
{[%clk 0:01:50.5]} 44... Kxa3 {[%clk 0:00:08.6]} 45. b5 {[%clk 0:01:51.7]} 45...
Bd5 {[%clk 0:00:09]} 46. Kg3 {[%clk 0:01:50.1]} 46... Kb4 {[%clk 0:00:10.4]} 47.
b6 {[%clk 0:01:47.1]} 47... Kc5 {[%clk 0:00:11.8]} 48. b7 {[%clk 0:01:48.2]}
48... Bxb7 {[%clk 0:00:13.2]} 49. Nxb7+ {[%clk 0:01:49.3]} 49... Kb6 {[%clk
0:00:15.1]} 50. Nd6 {[%clk 0:01:50.2]} 50... Kc5 {[%clk 0:00:16.6]} 51. Ne4+
{[%clk 0:01:50.9]} 51... Kd4 {[%clk 0:00:18.1]} 52. Nxg5 {[%clk 0:01:50.7]}
52... Ke3 {[%clk 0:00:19.7]} 53. Bf3 {[%clk 0:01:51]} 53... Kd4 {[%clk 0:00:21]}
54. Kf4 {[%clk 0:01:52.1]} 54... Kd3 {[%clk 0:00:22.1]} 55. Ne4 {[%clk
0:01:52.9]} 55... Kd4 {[%clk 0:00:23.4]} 56. Be2 {[%clk 0:01:53.9]} 56... Kd5
{[%clk 0:00:23.6]} 57. Ng5 {[%clk 0:01:55]} 57... Kd4 {[%clk 0:00:24.8]} 58.
Ne6+ {[%clk 0:01:55.7]} 58... Kc3 {[%clk 0:00:26.3]} 59. Ke3 {[%clk 0:01:55.9]}
59... Kc2 {[%clk 0:00:26.7]} 60. Nf4 {[%clk 0:01:45.8]} 60... Kc3 {[%clk
0:00:27.8]} 61. Nd5+ {[%clk 0:01:44]} 61... Kc2 {[%clk 0:00:28.9]} 62. Bc4
{[%clk 0:01:44.2]} 62... Kb2 {[%clk 0:00:29.7]} 63. Kd2 {[%clk 0:01:43.8]} 63...
Kb1 {[%clk 0:00:30.1]} 64. Ne3 {[%clk 0:01:41.6]} 64... Kb2 {[%clk 0:00:31.1]}
65. Nc2 {[%clk 0:01:42.5]} 65... Kb1 {[%clk 0:00:31.7]} 66. Kc3 {[%clk
0:01:43.3]} 66... Kc1 {[%clk 0:00:32.8]} 67. Ba2 {[%clk 0:01:44.3]} 67... Kd1
{[%clk 0:00:34.1]} 68. Nd4 {[%clk 0:01:45.5]} 68... Kc1 {[%clk 0:00:35.6]} 69.
Ne2+ {[%clk 0:01:46.2]} 69... Kd1 {[%clk 0:00:37.2]} 70. Kd3 {[%clk 0:01:47.4]}
70... Ke1 {[%clk 0:00:38.3]} 71. Ke3 {[%clk 0:01:48.5]} 71... Kd1 {[%clk
0:00:39.9]} 72. Bb3+ {[%clk 0:01:49.2]} 72... Ke1 {[%clk 0:00:41.4]} 73. Bc2
{[%clk 0:01:50.6]} 73... Kf1 {[%clk 0:00:42.8]} 74. Nf4 {[%clk 0:01:51.6]} 74...
Ke1 {[%clk 0:00:44.1]} 75. Ng2+ {[%clk 0:01:52.6]} 75... Kf1 {[%clk 0:00:45.7]}
76. Kf3 {[%clk 0:01:54.1]} 76... Kg1 {[%clk 0:00:46.8]} 77. Kg3 {[%clk
0:01:55.3]} 77... Kh1 {[%clk 0:00:48.4]} 78. Bd3 {[%clk 0:01:54.7]} 78... Kg1
{[%clk 0:00:49.9]} 79. Nf4 {[%clk 0:01:55.7]} 79... Kh1 {[%clk 0:00:50.6]} 80.
Be2 {[%clk 0:01:56.9]} 80... Kg1 {[%clk 0:00:52]} 81. Nh3+ {[%clk 0:01:58.3]}
81... Kh1 {[%clk 0:00:53.6]} 82. Bf3# {[%clk 0:01:59.5]} 1-0

[Event "*** MasterClass Titled Tuesday Blitz"]
[Site "Chess.com"]
[Date "2017.07.04"]
[Round "6"]
[White "BilodeauA"]
[Black "MITerryble"]
[Result "1-0"]
[WhiteElo "2631"]
[BlackElo "2644"]
[TimeControl "180+2"]
[EndTime "14:23:04 PDT"]
[Termination "BilodeauA won by resignation"]

1. e4 {[%clk 0:03:01.9]} 1... e6 {[%clk 0:02:59.8]} 2. d4 {[%clk 0:03:02.3]}
2... d5 {[%clk 0:03:01]} 3. Nd2 {[%clk 0:03:03.8]} 3... Be7 {[%clk 0:03:02.2]}
4. Ngf3 {[%clk 0:03:04.2]} 4... Nf6 {[%clk 0:03:03.2]} 5. Bd3 {[%clk 0:03:04.2]}
5... c5 {[%clk 0:03:04]} 6. exd5 {[%clk 0:03:03.8]} 6... Qxd5 {[%clk 0:03:01.1]}
7. dxc5 {[%clk 0:02:52.7]} 7... Qxc5 {[%clk 0:02:58.1]} 8. O-O {[%clk
0:02:52.8]} 8... Nbd7 {[%clk 0:02:58.2]} 9. Qe2 {[%clk 0:02:53.5]} 9... Qc7
{[%clk 0:02:55.4]} 10. a4 {[%clk 0:02:54]} 10... O-O {[%clk 0:02:51.2]} 11. a5
{[%clk 0:02:54.2]} 11... Nc5 {[%clk 0:02:51.8]} 12. Bc4 {[%clk 0:02:55]} 12...
Rb8 {[%clk 0:02:42.8]} 13. Nb3 {[%clk 0:02:28]} 13... Nxb3 {[%clk 0:02:08]} 14.
Bxb3 {[%clk 0:02:28.6]} 14... Bd6 {[%clk 0:01:58.2]} 15. Bg5 {[%clk 0:02:22.7]}
15... Bd7 {[%clk 0:01:55]} 16. Rfd1 {[%clk 0:02:17.1]} 16... Bc6 {[%clk
0:01:55.5]} 17. h3 {[%clk 0:02:14]} 17... Bf4 {[%clk 0:01:45]} 18. Bxf6 {[%clk
0:02:13.1]} 18... gxf6 {[%clk 0:01:45.6]} 19. Nd4 {[%clk 0:02:14.6]} 19... Kh8
{[%clk 0:01:39.5]} 20. Nxc6 {[%clk 0:01:57.4]} 20... bxc6 {[%clk 0:01:39]} 21.
Ra4 {[%clk 0:01:49.8]} 21... Rbd8 {[%clk 0:01:29.3]} 22. Rxd8 {[%clk 0:01:49.5]}
22... Rxd8 {[%clk 0:01:30]} 23. Qf3 {[%clk 0:01:24.1]} 23... Be5 {[%clk
0:01:05.9]} 24. c3 {[%clk 0:01:23.5]} 24... Qd6 {[%clk 0:00:45.7]} 25. g3 {[%clk
0:00:49.2]} 25... Qd2 {[%clk 0:00:37.6]} 26. Rh4 {[%clk 0:00:21]} 26... Kg7
{[%clk 0:00:38.2]} 27. Qg4+ {[%clk 0:00:19]} 27... Qg5 {[%clk 0:00:25.5]} 28. f4
{[%clk 0:00:17.6]} 28... Qg6 {[%clk 0:00:07.2]} 29. fxe5 {[%clk 0:00:16.2]}
29... fxe5 {[%clk 0:00:08.4]} 30. Qxg6+ {[%clk 0:00:13.6]} 30... hxg6 {[%clk
0:00:10.3]} 31. Re4 {[%clk 0:00:13.4]} 31... Rd2 {[%clk 0:00:05.5]} 32. Rxe5
{[%clk 0:00:14.4]} 32... Rxb2 {[%clk 0:00:06.7]} 33. Ba4 {[%clk 0:00:15.7]}
33... Kf6 {[%clk 0:00:05.1]} 34. Rc5 {[%clk 0:00:15.6]} 34... Ra2 {[%clk
0:00:06.7]} 35. Bxc6 {[%clk 0:00:16.3]} 35... Ke7 {[%clk 0:00:08.2]} 36. Bf3
{[%clk 0:00:16.5]} 36... Kd6 {[%clk 0:00:09.2]} 37. Rc6+ {[%clk 0:00:17.7]}
37... Ke5 {[%clk 0:00:11.1]} 38. Ra6 {[%clk 0:00:17.4]} 38... Ra3 {[%clk
0:00:11.5]} 39. Rxa7 {[%clk 0:00:17.6]} 39... f5 {[%clk 0:00:13.2]} 40. Kf2
{[%clk 0:00:18.3]} 40... Rxc3 {[%clk 0:00:14.3]} 41. a6 {[%clk 0:00:18.7]} 41...
Ra3 {[%clk 0:00:15.6]} 42. Be2 {[%clk 0:00:18.7]} 42... Kf6 {[%clk 0:00:14.2]}
43. Rc7 {[%clk 0:00:19]} 43... e5 {[%clk 0:00:15.4]} 44. a7 {[%clk 0:00:20.1]}
44... e4 {[%clk 0:00:16.9]} 45. Bc4 {[%clk 0:00:21.3]} 45... Ke5 {[%clk
0:00:17]} 46. Bb5 {[%clk 0:00:19.3]} 46... Kd6 {[%clk 0:00:17.3]} 47. Rc6+
{[%clk 0:00:20]} 47... Ke5 {[%clk 0:00:16.7]} 48. Ra6 {[%clk 0:00:20.8]} 48...
Rf3+ {[%clk 0:00:16.4]} 49. Kg2 {[%clk 0:00:21.6]} 1-0